{"text_format":"2","workbook":"xlsx","n_sheets":4,"sheets":["PL","BS","EQ","CF"],"not_rendered":{"charts":0,"images":1,"macros":0,"external_links":0,"defined_names":3810,"comments":0,"pivot_tables":0},"unopened":[],"bounds":{"document_bytes":16777216,"sheet_cells":100000,"run_cost":"one","rows_first":2000,"rows_last":500,"rows_between":2000,"halvings":0,"cell_chars":16384,"cell_head_chars":4096},"cells_cut":0,"cells_raw":0,"read":"whole","date_system":"1900"}

{"sheet":"PL","index":0,"n_rows":48,"n_cols":7,"rows_kept":48,"cut":false,"hidden":false,"merged":[]}
[]
[]
[null,null,"Konzernabschluss zum 31. März 2021."]
[]
[null,null,"Konsolidierte Gesamtergebnisrechnung."]
[]
[null,null,"in EUR",null,"2019/20",null,"2020/21"]
[null,null,"Umsatzerlöse",null,731183929.70679498,null,505174599.37661898]
[null,null,"Sonstige betriebliche Erträge",null,15985145.4968204,null,9930705.7887294907]
[null,null,"Veränderung des Bestandes an Fertigerzeugnissen, unfertigen Erzeugnissen \nsowie an noch nicht abrechenbaren Leistungen",null,-6117402.9245309401,null,-6234895.3216311997]
[null,null,"Aufwendungen für Material und sonstige bezogene Herstellungsleistungen",null,-334939805.15373498,null,-243459807.94543999]
[null,null,"Personalaufwand",null,-269167583.17747402,null,-243841220.42290801]
[null,null,"Sonstige betriebliche Aufwendungen",null,-118671516.198686,null,-84651853.816886306]
[null,null,"Anteiliges Ergebnis aus assoziierten Unternehmen und Gemeinschaftsunternehmen",null,-4638827.5389912603,null,-4067274.0624612798]
[null,null,"Ergebnis aus betrieblicher Tätigkeit vor Abschreibungen und Wertminderungen (EBITDA) 1)",null,13633940.210198175,null,-67149746.403978318]
[null,null,"Aufwand für planmäßige Abschreibungen",null,-27919654.315066274,null,-24739763.631758928]
[null,null,"Wertminderungen",null,-24882070.551373627,null,-31271011.226101175]
[null,null,"Ergebnis aus betrieblicher Tätigkeit (EBIT)",null,-39167784.6562417,null,-123160521.261838]
[null,null,"Finanzerträge",null,4983700.4241451798,null,7646138.9279483603]
[null,null,"Finanzaufwendungen",null,-28094876.036802899,null,-17253523.020497799]
[null,null,"Finanzergebnis",null,-23111175.6126577,null,-9607384.0925494395]
[null,null,"Anteiliges Ergebnis aus assoziierten Unternehmen und Gemeinschaftsunternehmen \nals Finanzinvestitionen",null,-1167378.67,null,-360732.61]
[null,null,"Ergebnis vor Steuern",null,-63446338.938899003,null,-133128637.964387]
[null,null,"Ertragsteuern",null,7728110.1582917804,null,27840203.905062702]
[null,null,"Periodenergebnis",null,-55718228.780607402,null,-105288434.059324]
[null,null,"davon den Anteilseignern der Gesellschaft zurechenbar",null,-48136696.759358697,null,-102878148.81878801]
[null,null,"davon nicht beherrschende Anteile",null,-7581532.0212507201,null,-2410285.2405362702]
[{"$nulls":4},"",null,""]
[null,null,"Periodenergebnis je Aktie, den Anteilseignern der Gesellschaft zurechenbar"]
[null,null,"verwässert = unverwässert",null,-3.7028228276429482,null,-7.9137037552913601]
[]
[null,null,"Sonstiges Ergebnis"]
[null,null,"Währungsumrechnungsdifferenzen ",null,1059228.264656757,null,11105378.859218502]
[null,null,"Währungsumrechnungsdifferenzen aus Nettoinvestitionen in einen \nausländischen Geschäftsbetrieb",null,1217211.01,null,-3248055.55]
[null,null,"Steuern betreffend Posten, die in das Periodenergebnis umgegliedert werden",null,-304302.75,null,812013.88]
[null,null,"Summe der Posten, die anschließend in das Periodenergebnis umgegliedert werden",null,1972136.524656757,null,8669337.1892185025]
[null,null,"Umbewertungen von Verpflichtungen aus Leistungen an Arbeitnehmer nach Beendigung \ndes Dienstverhältnisses",null,-2293351.2549554999,null,496737.16803373385]
[null,null,"Steuern betreffend Posten, die nicht in das Periodenergebnis umgegliedert werden",null,502926.94,null,-126335.85]
[null,null,"Summe der Posten, die anschließend nicht in das Periodenergebnis umgegliedert werden",null,-1790424.3149555,null,370401.31803373387]
[null,null,"Sonstiges Ergebnis der Periode nach Steuern",null,181712.20970125694,null,9039738.5072522592]
[null,null,"Gesamtergebnis der Periode",null,-55536516.570906103,null,-96248695.552072495]
[null,null,"davon den Anteilseignern der Gesellschaft zurechenbar",null,-49193585.942671202,null,-95414444.164068505]
[null,null,"davon nicht beherrschende Anteile ",null,-6342930.628234921,null,-834251.38800393499]
[]
[]
[]
[null,"1)","EBITDA (Ergebnis aus betrieblicher Tätigkeit vor Abschreibungen und Wertminderungen) wurde als neue Kennzahl eingeführt, "]
[null,null," um das operative Ergebnis ohne die zahlungsunwirksamen Abschreibungen und Wertminderungen klarer darzustellen."]

{"sheet":"BS","index":1,"n_rows":57,"n_cols":7,"rows_kept":57,"cut":false,"hidden":false,"merged":[[61,2,61,6]]}
[]
[]
[null,null,"Konsolidierte Bilanz."]
[]
[null,null,"in EUR",null,"31. März 2020",null,"31. März 2021"]
[null,null,"AKTIVA"]
[null,null,"Sachanlagen",null,82324598.137938499,null,55171218.748326197]
[null,null,"Immaterielle Vermögenswerte",null,59922455.993121602,null,36228960.404155903]
[null,null,"Anteile an assoziierten Unternehmen und Gemeinschaftsunternehmen",null,32634505.559216298,null,29750879.931365501]
[null,null,"Sonstige langfristige finanzielle Vermögenswerte und Beteiligungen",null,10873387.6327271,null,12280781.417578099]
[null,null,"Langfristige Vertragsvermögenswerte aus Kundenverträgen",null,13777929,null,5188155]
[null,null,"Langfristige Leasingforderungen",null,1244732.49569023,null,846547.79694224801]
[null,null,"Sonstige langfristige Vermögenswerte ",null,269923.17290996946,null,3592372.2484637722]
[null,null,"Latente Steueransprüche",null,26288490.268013,null,42888235.369571999]
[null,null,"Langfristige Vermögenswerte",null,227336022.630476,null,185947151.87322399]
[{"$nulls":4},"",null,""]
[null,null,"Vorräte",null,55657736.350295998,null,41733178.195804603]
[null,null,"Forderungen aus Lieferungen und Leistungen und sonstige kurzfristige Vermögenswerte",null,176984224.88568252,null,130041575.4355326]
[null,null,"Kurzfristige Vertragsvermögenswerte aus Kundenverträgen",null,138177685.63032299,null,105971626.996666]
[null,null,"Kurzfristige Leasingforderungen",null,442038.58427743998,null,594824.42551918398]
[null,null,"Kurzfristige Steuerforderungen",null,4655850.4850570299,null,25933536.45541323]
[null,null,"Sonstige kurzfristige finanzielle Vermögenswerte",null,1296407.65525333,null,923525.67876421101]
[null,null,"Liquide Mittel",null,122631806.781394,null,102010356.171988]
[null,null,"Kurzfristige Vermögenswerte",null,499845750.372284,null,407208623.35968798]
[{"$nulls":4},"",null,""]
[null,null,"SUMME AKTIVA",null,727181772.99276102,null,593155775.222911]
[{"$nulls":4},"",null,""]
[null,null,"EIGENKAPITAL",null,"",null,""]
[null,null,"Grundkapital",null,13000000.000000101,null,13000000.000000101]
[null,null,"Kapitalrücklage",null,117508771.26000001,null,117508771.260001]
[null,null,"Konzernbilanzgewinn/-verlust und sonstige Rücklagen",null,57652976.496575907,null,-39267924.324494004]
[null,null,"Kapital und Rücklagen, die den Anteilseignern der Gesellschaft zurechenbar sind",null,188161747.756576,null,91240846.935507104]
[null,null,"Nicht beherrschende Anteile ",null,-5680095.9900497701,null,-6479918.6600349704]
[null,null,"SUMME EIGENKAPITAL ",null,182481651.76652601,null,84760928.275472105]
[]
[null,null,"VERBINDLICHKEITEN"]
[null,null,"Langfristige Finanzverbindlichkeiten",null,185230920.396247,null,120894966.60266399]
[null,null,"Langfristige Leasingverbindlichkeiten",null,50056883.403343797,null,35692506.396812603]
[null,null,"Verpflichtungen aus Leistungen an Arbeitnehmer nach Beendigung des Dienstverhältnisses",null,27611262.157154899,null,25425103.400540099]
[null,null,"Langfristige Rückstellungen",null,4294724.7601993103,null,5264933.7188840499]
[null,null,"Langfristige Vertragsverbindlichkeiten aus Kundenverträgen",null,3505358,null,9413374]
[null,null,"Sonstige langfristige Verbindlichkeiten",null,830435.46061151009,null,611761.15546000004]
[null,null,"Latente Steuerschulden",null,1705943.8507854899,null,1015783.95805942]
[null,null,"Langfristige Verbindlichkeiten",null,273235528.02834201,null,198318429.23242]
[]
[null,null,"Kurzfristige Finanzverbindlichkeiten",null,50701974.569346599,null,102362405.64709701]
[null,null,"Kurzfristige Leasingverbindlichkeiten",null,13588846.360253399,null,13584992.6880689]
[null,null,"Verbindlichkeiten aus Lieferungen und Leistungen",null,92404441.983661205,null,59403811.326917]
[null,null,"Kurzfristige Vertragsverbindlichkeiten aus Kundenverträgen",null,26798120.449262101,null,39144575.103083]
[null,null,"Kurzfristige Rückstellungen",null,23374780.048349001,null,42471695.162826702]
[null,null,"Kurzfristige Steuerverbindlichkeiten",null,4042778.05851926,null,1747702.42018705]
[null,null,"Sonstige Verbindlichkeiten und Abgrenzungen",null,60553651.802993797,null,51361235.371615082]
[null,null,"Kurzfristige Verbindlichkeiten",null,271464592.82267201,null,310076417.71501875]
[]
[null,null,"SUMME VERBINDLICHKEITEN",null,544700120.85101402,null,508394846.94743973]
[]
[null,null,"SUMME PASSIVA",null,727181772.99275994,null,593155775.22291195]

{"sheet":"EQ","index":2,"n_rows":26,"n_cols":17,"rows_kept":26,"cut":false,"hidden":false,"merged":[[29,2,29,14]]}
[]
[]
[]
[null,null,"Konsolidierte Eigenkapitalveränderungsrechnung."]
[]
[]
[null,null,"in EUR",null,"Grund-\nkapital",null,"Kapital-\nrücklage",null,"Sonstige Rücklagen",null,"Konzern-\nbilanzgewinn/-verlust",null,"Den Anteilseignern der Gesellschaft zurechenbar",null,"Nicht beherrschende Anteile ",null,"Summe\nEigen-\nkapital"]
[null,null,"Stand 31. März 2020",null,13000000.000000101,null,117508771.26000001,null,-50128447.432836384,null,107781423.92941248,null,{"$f":"SUM(E8:K8)+1","v":188161748.75657621},null,-5680095.9900497701,null,182481651.76652601]
[null,null,"Effekte aus dem Erwerb von Anteilen an Tochterunternehmen",{"$nulls":5},-1506457.3500945051,null,null,null,{"$f":"SUM(E9:K9)","v":-1506457.3500945051},null,106457.350094505,null,{"$f":"+M9+O9","v":-1400000}]
[null,null,"Effekte aus dem Verkauf von Anteilen an \nTochterunternehmen",{"$nulls":11},-72028.638630442991,null,{"$f":"+M10+O10","v":-72028.638630442991}]
[null,null,"Dividende",{"$nulls":7},0,null,0,null,0,null,0]
[null,null,"Periodenergebnis",{"$nulls":7},-102878148.81878801,null,-102878148.81878801,null,-2410285.2405362702,null,-105288434.05932428]
[null,null,"Sonstiges Ergebnis der Periode:"]
[null,null,"   Währungsumrechnungsdifferenzen",{"$nulls":5},7093303.194186395,null,null,null,7093303.194186395,null,1576033.8525323351,null,8669337.0467187297]
[null,null,"   Umbewertungen von Verpflichtungen aus \n   Leistungen an Arbeitnehmer nach Beendigung \n   des Dienstverhältnisses",{"$nulls":5},370401.31803373393,null,null,null,370401.31803373393,null,0,null,370401.31803373393]
[null,null,"Stand 31. März 2021",null,{"$f":"SUM(E8:E15)","v":13000000.000000101},null,{"$f":"SUM(G8:G15)","v":117508771.26000001},null,{"$f":"SUM(I8:I15)","v":-44171200.270710759},null,{"$f":"SUM(K8:K15)","v":4903275.1106244773},null,{"$f":"SUM(M8:M15)","v":91240847.099913836},null,{"$f":"SUM(O8:O15)","v":-6479918.6665896438},null,{"$f":"SUM(Q8:Q15)+0.5","v":84760927.933323756}]
[]
[]
[null,null,"Stand 31. März 2019 ",null,13000000.000000101,null,117508771.26000001,null,-48482735.249533497,null,175418120.84467819,null,{"$f":"SUM(E19:K19)","v":257444156.8551448},null,97985.89972597867,null,{"$f":"+M19+O19","v":257542142.75487077}]
[null,null,"Kapital- und Anteilsveränderungen bei einem Tochterunternehmen",{"$nulls":5},-588823,null,null,null,-588823,null,564849,null,{"$f":"+M20+O20","v":-23974}]
[null,null,"Dividende",{"$nulls":7},-19500000,null,-19500000,null,0,null,-19500000]
[null,null,"Periodenergebnis ",{"$nulls":7},-48136696.759358697,null,-48136696.759358697,null,-7581532.0212507201,null,-55718228.780609414]
[null,null,"Sonstiges Ergebnis der Periode:"]
[null,null,"   Währungsumrechnungsdifferenzen ",{"$nulls":5},733535.12914095796,null,null,null,733535.12914095796,null,1238601.3930157991,null,1972136.5221567571]
[null,null,"   Umbewertungen von Verpflichtungen aus \n   Leistungen an Arbeitnehmer nach Beendigung \n   des Dienstverhältnisses",{"$nulls":5},-1790424.3149554997,null,null,null,-1790424.3149554997,null,0,null,-1790424.3149554997]
[null,null,"Stand 31. März 2020",null,{"$f":"SUM(E19:E25)","v":13000000.000000101},null,{"$f":"SUM(G19:G25)","v":117508771.26000001},null,{"$f":"SUM(I19:I25)","v":-50128447.435348041},null,{"$f":"SUM(K19:K25)","v":107781424.08531949},null,{"$f":"SUM(M19:M25)+1","v":188161748.90997154},null,{"$f":"SUM(O19:O25)","v":-5680095.7285089428},null,{"$f":"SUM(Q19:Q25)","v":182481652.18146259}]

{"sheet":"CF","index":3,"n_rows":55,"n_cols":7,"rows_kept":55,"cut":false,"hidden":false,"merged":[[55,2,55,6]]}
[]
[]
[null,null,"Konsolidierte Kapitalflussrechnung."]
[]
[null,null,"in EUR",null,"2019/20",null,"2020/21"]
[null,null,"Ergebnis aus betrieblicher Tätigkeit",null,-39167784.6562417,null,-123160521.261838]
[null,null,"Planmäßige Abschreibungen",null,27919653.866439901,null,24739763.627860099]
[null,null,"Wertminderungen",null,24882071,null,31271011.23]
[null,null,"Veränderung Verpflichtungen aus Leistungen an Arbeitnehmer nach Beendigung des Dienstverhältnisses",null,-654969.98952099297,null,-1978069.2210345501]
[null,null,"Veränderung langfristiger Forderungen aus Lieferungen und Leistungen, langfristiger Vertragsvermögenswerte aus Kundenverträgen und sonstiger langfristiger Vermögenswerte",null,2902404.2547930703,null,5552354.6231941395]
[null,null,"Veränderung langfristiger Verbindlichkeiten aus Lieferungen und Leistungen, langfristiger Vertragsverbindlichkeiten aus Kundenverträgen und sonstiger langfristiger Verbindlichkeiten und Rückstellungen ",null,-4729892.0283396402,null,6651137.6535332697]
[null,null,"Nettozahlungen von Ertragsteuern",null,-10201166.6343263,null,-13704764.727554601]
[null,null,"Zinseinzahlungen",null,1800591.0106885501,null,2268613.2460578801]
[null,null,"Zinsauszahlungen",null,-5814063.6261535296,null,-6528435.0869471896]
[null,null,"Sonstige (netto)",null,5153808.2337753698,null,3080160.1717622802]
[null,null,"Cashflow aus dem Ergebnis",null,2090651.4311147304,null,-71808749.744966656]
[{"$nulls":4},"",null,""]
[null,null,"Veränderung des Nettoumlaufvermögens:",null,"",null,""]
[null,null,"Veränderung Forderungen aus Lieferungen und Leistungen, kurzfristiger Vertragsvermögenswerte aus Kundenverträgen und sonstiger kurzfristiger Vermögenswerte",null,16905844.9763867,null,79069051.272209302]
[null,null,"Veränderung Vorräte",null,8396728.2068907097,null,13924558.1544913]
[null,null,"Veränderung Verbindlichkeiten aus Lieferungen und Leistungen, kurzfristiger Vertragsverbindlichkeiten aus Kundenverträgen und sonstiger kurzfristiger Verbindlichkeiten ",null,-2659068.0966310501,null,-29189109.644473899]
[null,null,"Veränderung kurzfristige Rückstellungen",null,8641054.8776670899,null,19115275.114477601]
[null,null,"Veränderung des Nettoumlaufvermögens",null,31284559.964313399,null,82919774.896704316]
[{"$nulls":4},"",null,""]
[null,null,"Cashflow aus betrieblicher Tätigkeit",null,33375211.395428199,null,11111025.151737699]
[{"$nulls":4},"",null,""]
[null,null,"Ankauf von Sachanlagen",null,-9284912.6248291302,null,-2413780.3796537002]
[null,null,"Ankauf von immateriellen Vermögenswerten",null,-4964889.1211401196,null,-3707014.7277355501]
[null,null,"Ankauf von Wertpapieren, Beteiligungen und sonstigen langfristigen Finanzanlagen",null,-19322341.677772,null,-7973968.7999999998]
[null,null,"Zahlungen für den Erwerb von Gesellschaften (abzüglich der liquiden Mittel dieser Gesellschaften)",null,-177000,null,0]
[null,null,"Zahlungen für den Erwerb von Anteilen an at-equity-konsolidierten Gesellschaften",null,-490360.81190089899,null,-1515212.45]
[null,null,"Einzahlungen aus dem Verkauf von Anteilen und der Liquidation von Tochterunternehmen",null,7655.7370643001104,null,1290870.3675116999]
[null,null,"Einzahlungen aus dem Verkauf von Sachanlagen und immateriellen Vermögenswerten",null,2842862.20265345,null,750763.07578625798]
[null,null,"Einzahlungen aus dem Verkauf von Wertpapieren und sonstigen finanziellen Vermögenswerten",null,392319,null,6780771]
[null,null,"Cashflow aus Investitionstätigkeit",null,-30996667.295924298,null,-6787571.91409129]
[{"$nulls":4},"",null,""]
[null,null,"Free Cashflow 1)",null,2378544.0995039009,null,4323453.2376464093]
[]
[null,null,"An die Aktionäre der Gesellschaft gezahlte Dividende",null,-19500000.155907001,null,0.24125349801033699]
[null,null,"Zahlungen für den Erwerb von nicht beherrschenden Anteilen",null,-2000000,null,-1400000]
[null,null,"Zunahme langfristiger Finanzverbindlichkeiten",null,62630984,null,121077]
[null,null,"Zunahme kurzfristiger Finanzverbindlichkeiten",null,10119638,null,18789560]
[null,null,"Abnahme kurzfristiger Finanzverbindlichkeiten",null,-6175577,null,-30296385]
[null,null,"Auszahlungen betreffend Leasing",null,-13630751.2364028,null,-14047283.6787157]
[null,null,"Cashflow aus Finanzierungstätigkeit",null,31444293.693997599,null,-26833031.153294802]
[{"$nulls":4},"",null,""]
[null,null,"Anfangsbestand Finanzmittel",null,94651919.917167604,null,122631806.781394]
[null,null,"Veränderung des Finanzmittelbestands 2)",null,33822837.793500997,null,-22509577.915648401]
[null,null,"Auswirkungen von Wechselkursänderungen",null,-5842950.0088850204,null,1888129.2387238401]
[null,null,"Endbestand Finanzmittel",null,122631806.781394,null,102010356.171988]
[]
[]
[]
[null,"1)","Cashflow aus betrieblicher Tätigkeit + Cashflow aus Investitionstätigkeit"]
[null,"2)","Free Cashflow + Cashflow aus Finanzierungstätigkeit"]